fUST/lending_fUST_20250219
["ID","MTS","AMOUNT","RATE_DAILY","PERIOD"]
[353619574,1739959852654,-1241.844296,0.000149,2]
[353619575,1739959852663,-1241.844296,0.000149,2]
[353619576,1739959852672,-151.0,0.000149,2]
[353619577,1739959852682,-151.0,0.000149,2]
[353619578,1739959852691,-742.206382,0.000149,2]
[353619579,1739959852700,-742.206382,0.000149,2]
[353619580,1739959852710,-665.490268,0.000149,2]
[353619581,1739959852720,-665.490268,0.000149,2]
[353619582,1739959852730,-968.42656,0.000149,2]
[353619583,1739959852739,-968.42656,0.000149,2]
[353619584,1739959852748,-151.0,0.000149,2]
[353619585,1739959852758,-277077.751102,0.000149,2]
[353619586,1739959852767,-569.028332,0.000149,2]
[353619587,1739959852780,-569.028332,0.000149,2]
[353619588,1739959852790,-184.882004,0.000149,2]
[353619589,1739959852799,-184.882004,0.000149,2]
[353619590,1739959852810,-151.0,0.000149,2]
[353619591,1739959852819,-151.0,0.000149,2]
[353619592,1739959852828,-160.243989,0.000149,2]
[353619593,1739959852837,-292.286493,0.000149,2]
[353619594,1739959852847,-292.286493,0.000149,2]
[353619595,1739959852857,-151.0,0.000149,2]
[353619596,1739959852866,-2166.321285,0.00014921,2]
[353619597,1739959852876,-2166.321285,0.00014921,2]
[353619598,1739959852885,-1254.528769,0.00014921,2]
[353619599,1739959852894,-1254.528769,0.00014921,2]
[353619600,1739959852904,-160.0,0.0001493,2]
[353619601,1739959852913,-160.09128001,0.0001493,2]
[353619602,1739959852922,-232.54456414,0.0001493,2]
[353619603,1739959852932,-500.0,0.00014931,2]
[353619604,1739959852941,-500.0,0.00014931,2]
[353619605,1739959852951,-1714.54,0.00014931,2]
[353619606,1739959852960,-538.76,0.00014931,2]
[353619607,1739959852970,-281.42288037,0.00014931,2]
[353619608,1739959852979,-191.92074185,0.00014931,2]
[353619609,1739959852988,-500.0,0.00014931,2]
[353619610,1739959852997,-684.31,0.00014931,2]
[353619611,1739959853007,-2745.15,0.00014931,2]
[353619612,1739959853016,-500.0,0.00014931,2]
[353619613,1739959853025,-2063.69,0.00014931,2]
[353619614,1739959853034,-594.94,0.00014931,2]
[353619615,1739959853043,-420.0,0.00014983,2]
[353619616,1739959853053,-500.0,0.00015013,2]
[353619617,1739959853062,-285.34522516,0.00015013,2]
[353619618,1739959853072,-1714.54,0.00015013,2]
[353619619,1739959853081,-538.76,0.00015013,2]
[353619620,1739959853091,-500.0,0.00015013,2]
[353619621,1739959853100,-684.31,0.00015013,2]
[353619622,1739959853174,-2745.15,0.00015013,2]
[353619623,1739959853185,-500.0,0.00015013,2]
[353619624,1739959853196,-2063.69,0.00015013,2]
[353619625,1739959853206,-1971.690252,0.00015095,2]
[353619626,1739959853215,-1971.690252,0.00015095,2]
[353619627,1739959853224,-500.0,0.00015095,2]
[353619628,1739959853233,-1714.54,0.00015095,2]
[353619629,1739959853243,-538.76,0.00015095,2]
[353619630,1739959853252,-180.50694461,0.00015095,2]
[353619631,1739959853261,-684.31,0.00015095,2]
[353619632,1739959853271,-2745.15,0.00015095,2]
[353619633,1739959853281,-500.0,0.00015095,2]
[353619634,1739959853290,-2063.69,0.00015095,2]
[353619635,1739959853299,-501.0,0.0001515,2]
[353619636,1739959853308,-375.85,0.00015178,2]
[353619637,1739959853318,-1714.54,0.00015178,2]
[353619638,1739959853328,-538.76,0.00015178,2]
[353619639,1739959853337,-684.31,0.00015178,2]
[353619640,1739959853347,-2745.15,0.00015178,2]
[353619641,1739959853357,-404.38677408,0.00015178,2]
[353619642,1739959853366,-2063.69,0.00015178,2]
[353619643,1739959853375,-500.0,0.00015178,2]
[353619644,1739959853384,-500.0,0.00015178,2]
[353619645,1739959853393,-500.0,0.00015178,2]
[353619646,1739959853402,-500.0,0.00015178,2]
[353619647,1739959853411,-500.0,0.00015178,2]
[353619648,1739959853420,-500.0,0.00015178,2]
[353619649,1739959853429,-500.0,0.00015178,2]
[353619650,1739959853439,-500.0,0.00015178,2]
[353619651,1739959853448,-500.0,0.00015178,2]
[353619652,1739959853458,-500.0,0.00015178,2]
[353619653,1739959853467,-500.0,0.00015178,2]
[353619654,1739959853476,-500.0,0.00015178,2]
[353619655,1739959853486,-500.0,0.00015178,2]
[353619656,1739959853495,-500.0,0.00015178,2]
[353619657,1739959853504,-500.0,0.00015178,2]
[353619658,1739959853514,-500.0,0.00015178,2]
[353619659,1739959853523,-500.0,0.00015178,2]
[353619660,1739959853533,-500.0,0.00015178,2]
[353619661,1739959853543,-500.0,0.00015178,2]
[353619662,1739959853553,-500.0,0.00015178,2]
[353619663,1739959853563,-500.0,0.00015178,2]
[353619664,1739959853575,-500.0,0.00015178,2]
[353619665,1739959853585,-500.0,0.00015178,2]
[353619666,1739959853595,-500.0,0.00015178,2]
[353619667,1739959853605,-500.0,0.00015178,2]
[353619668,1739959853615,-603.554545,0.00015178,2]
[353619669,1739959853624,-503.62720318,0.00015222,2]
[353619670,1739959853634,-1534.55773278,0.00015222,2]
[353619671,1739959853644,-1150.54605966,0.00015222,2]
[353619672,1739959853654,-1714.54,0.0001526,2]
[353619673,1739959853663,-538.76,0.0001526,2]
[353619674,1739959853672,-684.31,0.0001526,2]
[353619675,1739959853683,-2745.15,0.0001526,2]
[353619676,1739959853692,-2063.69,0.0001526,2]
[353619677,1739959853703,-964.669117,0.00015342,2]
[353619678,1739959853715,-964.669117,0.00015342,2]
[353619679,1739959853725,-151.413482,0.00015342,2]
[353619680,1739959853735,-450.0,0.00015342,2]
[353619681,1739959853745,-450.0,0.00015342,2]
[353619682,1739959853755,-1714.54,0.00015342,2]
[353619683,1739959853765,-538.76,0.00015342,2]
[353619684,1739959853779,-684.31,0.00015342,2]
[353619685,1739959853788,-2745.15,0.00015342,2]
[353619686,1739959853798,-2063.69,0.00015342,2]
[353619687,1739959853807,-1000.0,0.00015421,2]
[353619688,1739959853817,-1000.0,0.00015421,2]
[353619689,1739959853829,-500.00643651,0.00015421,2]
[353619690,1739959853839,-1000.0,0.00015421,2]
[353619691,1739959853850,-1000.0,0.00015421,2]
[353619692,1739959853859,-501.30101814,0.00015421,2]
[353619693,1739959853869,-1714.54,0.00015424,2]
[353619694,1739959853878,-538.76,0.00015424,2]
[353619695,1739959853888,-684.31,0.00015424,2]
[353619696,1739959853899,-2745.15,0.00015424,2]
[353619697,1739959853909,-2063.69,0.00015424,2]
[353619698,1739959853918,-1714.54,0.00015506,2]
[353619699,1739959853928,-538.76,0.00015506,2]
[353619700,1739959853938,-684.31,0.00015506,2]
[353619701,1739959853947,-2745.15,0.00015506,2]
[353619702,1739959853957,-2063.69,0.00015506,2]
[353619703,1739959853966,-500.0,0.00015534,2]
[353619704,1739959853975,-7438.69753278,0.00015543,2]
[353619705,1739959853984,-169.97926518,0.00015552,2]
[353619706,1739959853993,-577.64796051,0.00015553,2]
[353619707,1739959854003,-501.27627951,0.00015553,2]
[353619708,1739959854012,-450.29929733,0.00015553,2]
[353619709,1739959854023,-500.75176097,0.00015553,2]
[353619710,1739959854032,-229.44199459,0.00015553,2]
[353619711,1739959854041,-314.68858366,0.00015553,2]
[353619712,1739959854218,-83.17267445,0.00015553,2]
[353619723,1739960219183,242.89760755,0.00010423,2]
[353619724,1739960234908,242.89760755,0.00010423,2]
[353619725,1739960398816,242.89760755,0.00010423,2]
[353619726,1739960404246,191.711088,9.041e-05,2]
[353619737,1739960834104,-466.66666666,0.00010741,2]
[353619738,1739960834134,-716.73017142,0.00010849,2]
[353619740,1739960914533,1050.37210985,0.00017755,90]
[353619745,1739960950100,-372.26982858,0.00010849,2]
[353619746,1739960950123,-813.2444109,0.00012102,2]
[353619747,1739960950144,-300.0,0.00012499,2]
[353619748,1739960950165,-11027.35026035,0.000125,2]
[353619749,1739960950185,-166.66666666,0.00012709,2]
[353619750,1739960950208,-250.0,0.00012809,2]
[353619751,1739960950230,-500.0,0.00012868,2]
[353619752,1739960950250,-199.26620006,0.00012868,2]
[353619753,1739960950270,-500.0,0.00012868,2]
[353619754,1739960950289,-500.0,0.00012868,2]
[353619755,1739960950311,-580.36279467,0.00012868,2]
[353619756,1739960950332,-16882.43038391,0.00012869,2]
[353619757,1739960963150,-887.31,0.00010959,2]
[353619758,1739960963173,-645.08735701,0.00012869,2]
[353619806,1739961038494,-7372.48225908,0.00012869,2]
[353619808,1739961038504,-300.0,0.00012999,2]
[353619810,1739961038513,-231.15142163,0.00012999,2]
[353619812,1739961038523,-33960.33981686,0.00013,2]
[353619814,1739961038534,-169.97926518,0.00013598,2]
[353619816,1739961038543,-152.0,0.00013677,2]
[353619818,1739961038553,-500.0,0.00013698,2]
[353619820,1739961038562,-599.36788147,0.00013698,2]
[353619822,1739961038573,-500.0,0.00013698,2]
[353619824,1739961038583,-6108.65916064,0.00013698,2]
[353619826,1739961038593,-500.0,0.00013698,2]
[353619828,1739961038603,-500.0,0.00013698,2]
[353619831,1739961038612,-412.81408053,0.00013698,2]
[353619834,1739961038622,-500.0,0.00013698,2]
[353619837,1739961038631,-500.0,0.00013698,2]
[353619840,1739961038642,-181.08260076,0.00013698,2]
[353619843,1739961038652,-500.0,0.00013698,2]
[353619846,1739961038661,-500.0,0.00013698,2]
[353619849,1739961038671,-500.0,0.00013698,2]
[353619852,1739961038682,-500.0,0.00013698,2]
[353619855,1739961038691,-500.0,0.00013698,2]
[353619858,1739961038701,-398.7504854,0.00013698,2]
[353619860,1739961038711,-502.92828678,0.00013698,2]
[353619862,1739961038721,-509.75999932,0.00013698,2]
[353619864,1739961038730,-503.13910038,0.00013698,2]
[353619866,1739961038740,-500.0,0.00013698,2]
[353619868,1739961038750,-500.0,0.00013698,2]
[353619870,1739961038759,-164.71649331,0.00013698,2]
[353619872,1739961038769,-500.0,0.00013698,2]
[353619875,1739961038779,-500.0,0.00013698,2]
[353619877,1739961038788,-500.0,0.00013698,2]
[353619878,1739961038798,-500.0,0.00013698,2]
[353619881,1739961038807,-500.0,0.00013698,2]
[353619883,1739961038817,-404.91359938,0.00013698,2]
[353619885,1739961038827,-500.0,0.00013698,2]
[353619887,1739961038837,-500.0,0.00013698,2]
[353619889,1739961038847,-500.0,0.00013698,2]
[353619891,1739961038856,-381.34,0.00013698,2]
[353619893,1739961038866,-500.0,0.00013698,2]
[353619895,1739961038876,-250.11793083,0.00013698,2]
[353619897,1739961038888,-500.0,0.00013698,2]
[353619899,1739961038897,-501.15493272,0.00013698,2]
[353619901,1739961038906,-500.0,0.00013698,2]
[353619903,1739961038915,-501.6861473,0.00013698,2]
[353619905,1739961038926,-500.0,0.00013698,2]
[353619907,1739961038936,-500.0,0.00013698,2]
[353619909,1739961038946,-500.0,0.00013698,2]
[353619911,1739961038956,-500.0,0.00013698,2]
[353619913,1739961038966,-500.0,0.00013698,2]
[353619915,1739961038976,-500.0,0.00013698,2]
[353619917,1739961038986,-500.0,0.00013698,2]
[353619918,1739961038995,-315.30700353,0.00013698,2]
[353619919,1739961039005,-500.0,0.00013698,2]
[353619920,1739961039014,-500.0,0.00013698,2]
[353619921,1739961039024,-500.0,0.00013698,2]
[353619922,1739961039034,-500.0,0.00013698,2]
[353619923,1739961039044,-500.0,0.00013698,2]
[353619924,1739961039054,-500.0,0.00013698,2]
[353619925,1739961039063,-431.12659892,0.00013698,2]
[353619926,1739961039073,-500.0,0.00013698,2]
[353619927,1739961039082,-500.0,0.00013698,2]
[353619928,1739961039092,-500.0,0.00013698,2]
[353619929,1739961039102,-500.0,0.00013698,2]
[353619930,1739961039111,-500.0,0.00013698,2]
[353619931,1739961039121,-503.83014766,0.00013698,2]
[353619932,1739961039131,-500.0,0.00013698,2]
[353619933,1739961039143,-500.0,0.00013698,2]
[353619934,1739961039152,-500.0,0.00013698,2]
[353619935,1739961039167,-500.0,0.00013698,2]
[353619936,1739961039176,-500.0,0.00013698,2]
[353619937,1739961039186,-500.0,0.00013698,2]
[353619938,1739961039196,-500.0,0.00013698,2]
[353619939,1739961039207,-500.0,0.00013698,2]
[353619940,1739961039216,-587.93,0.00013698,2]
[353619941,1739961039226,-500.0,0.00013698,2]
[353619944,1739961039238,-500.0,0.00013698,2]
[353619946,1739961039253,-500.0,0.00013698,2]
[353619948,1739961039267,-500.0,0.00013698,2]
[353619951,1739961039280,-500.0,0.00013698,2]
[353619953,1739961039292,-500.0,0.00013698,2]
[353619955,1739961039305,-500.0,0.00013698,2]
[353619958,1739961039317,-500.0,0.00013698,2]
[353619960,1739961039327,-500.0,0.00013698,2]
[353619962,1739961039338,-500.0,0.00013698,2]
[353619964,1739961039351,-425.158605,0.00013699,2]
[353619966,1739961039363,-546.201057,0.00013699,2]
[353619967,1739961039374,-249.06253667,0.00013699,2]
[353619968,1739961039387,-500.0,0.00013779,2]
[353619969,1739961039399,-500.0,0.00013779,2]
[353619970,1739961039412,-444.40978606,0.00013779,2]
[353619971,1739961039424,-500.0,0.0001378,2]
[353619972,1739961039435,-500.0,0.0001378,2]
[353619973,1739961039447,-455.69680199,0.0001378,2]
[353619974,1739961039459,-500.0,0.0001378,2]
[353619975,1739961039471,-500.0,0.0001378,2]
[353619976,1739961039485,-500.0,0.0001378,2]
[353619977,1739961039497,-500.0,0.0001378,2]
[353619978,1739961039509,-294.54756481,0.0001378,2]
[353619979,1739961039519,-506.73026402,0.0001378,2]
[353619980,1739961039532,-500.0,0.0001378,2]
[353619981,1739961039544,-500.0,0.0001378,2]
[353619982,1739961039556,-566.47,0.0001378,2]
[353619983,1739961039568,-596.78804839,0.0001378,2]
[353619984,1739961039580,-294.989639,0.0001378,2]
[353619985,1739961039592,-500.0,0.0001378,2]
[353619986,1739961039603,-500.0,0.0001378,2]
[353619987,1739961039616,-500.0,0.0001378,2]
[353619988,1739961039626,-500.0,0.0001378,2]
[353619989,1739961039638,-500.0,0.0001378,2]
[353619990,1739961039648,-500.0,0.0001378,2]
[353619991,1739961039659,-500.0,0.0001378,2]
[353619992,1739961039671,-501.89911307,0.0001378,2]
[353619993,1739961039682,-511.49,0.0001378,2]
[353619994,1739961039694,-633.78,0.0001378,2]
[353619995,1739961039707,-500.0,0.0001378,2]
[353619996,1739961039719,-500.0,0.00013863,2]
[353619997,1739961039732,-500.0,0.00013863,2]
[353619998,1739961039744,-500.0,0.00013863,2]
[353619999,1739961039756,-500.0,0.00013863,2]
[353620000,1739961039768,-500.0,0.00013863,2]
[353620001,1739961039781,-500.0,0.00013863,2]
[353620002,1739961039793,-601.3,0.00013863,2]
[353620003,1739961039805,-500.0,0.00013863,2]
[353620004,1739961039818,-500.0,0.00013863,2]
[353620005,1739961039830,-315.13,0.00013863,2]
[353620006,1739961039842,-270.60545645,0.00013863,2]
[353620007,1739961039852,-500.0,0.00013863,2]
[353620008,1739961039863,-500.0,0.00013863,2]
[353620009,1739961039873,-302.0,0.00013892,2]
[353620010,1739961039885,-63343.45373174,0.000139,2]
[353620011,1739961039896,-210.14178733,0.00013927,2]
[353620012,1739961039907,-197.56344082,0.00013927,2]
[353620013,1739961039919,-500.0,0.00013945,2]
[353620014,1739961039932,-500.0,0.00013945,2]
[353620015,1739961039943,-500.0,0.00013945,2]
[353620016,1739961039955,-500.0,0.00013945,2]
[353620017,1739961039966,-500.0,0.00013945,2]
[353620018,1739961039976,-500.0,0.00013945,2]
[353620019,1739961039987,-500.0,0.00013945,2]
[353620020,1739961039997,-500.0,0.00013945,2]
[353620021,1739961040008,-500.0,0.00013945,2]
[353620022,1739961040019,-500.0,0.00013945,2]
[353620023,1739961040030,-514.07,0.00014027,2]
[353620024,1739961040041,-288.56680216,0.00014027,2]
[353620026,1739961040051,-500.0,0.00014027,2]
[353620029,1739961040061,-500.0,0.00014027,2]
[353620031,1739961040071,-448.51313645,0.00014027,2]
[353620033,1739961040081,-500.0,0.00014027,2]
[353620034,1739961040093,-500.0,0.00014027,2]
[353620035,1739961040104,-500.0,0.00014027,2]
[353620036,1739961040114,-500.0,0.00014027,2]
[353620037,1739961040124,-500.0,0.00014027,2]
[353620038,1739961040135,-500.0,0.00014067,2]
[353620039,1739961040145,-539.55523091,0.00014109,2]
[353620040,1739961040157,-500.0,0.00014109,2]
[353620041,1739961040168,-500.0,0.00014109,2]
[353620042,1739961040179,-500.0,0.00014109,2]
[353620043,1739961040190,-520.99446256,0.00014109,2]
[353620044,1739961040202,-500.0,0.00014109,2]
[353620045,1739961040213,-500.0,0.00014109,2]
[353620046,1739961040223,-600.0,0.00014164,2]
[353620047,1739961040235,-217.82046274,0.00014191,2]
[353620048,1739961040246,-500.0,0.00014191,2]
[353620049,1739961040256,-500.0,0.00014191,2]
[353620050,1739961040267,-500.0,0.00014191,2]
[353620051,1739961040278,-500.0,0.00014191,2]
[353620052,1739961040289,-420.0,0.00014256,2]
[353620053,1739961040299,-500.0,0.00014273,2]
[353620054,1739961040311,-500.0,0.00014273,2]
[353620055,1739961040322,-500.0,0.00014273,2]
[353620056,1739961040332,-500.0,0.00014273,2]
[353620058,1739961040343,-500.0,0.00014356,2]
[353620060,1739961040355,-500.0,0.00014356,2]
[353620061,1739961040365,-500.0,0.00014356,2]
[353620062,1739961040376,-500.0,0.00014356,2]
[353620063,1739961040387,-500.66690975,0.00014382,2]
[353620064,1739961040397,-500.0,0.00014438,2]
[353620065,1739961040408,-500.0,0.00014438,2]
[353620066,1739961040419,-500.0,0.00014438,2]
[353620067,1739961040430,-569.60218811,0.00014438,2]
[353620068,1739961040441,-151.0,0.000145,2]
[353620069,1739961040452,-200.0,0.00014519,2]
[353620070,1739961040462,-173.72139823,0.00014519,2]
[353620071,1739961040473,-376.55308727,0.00014519,2]
[353620072,1739961040483,-487.36561838,0.00014519,2]
[353620073,1739961040494,-502.34888546,0.00014519,2]
[353620075,1739961040504,-500.0,0.00014519,2]
[353620076,1739961040515,-500.0,0.00014519,2]
[353620077,1739961040525,-500.0,0.00014519,2]
[353620078,1739961040536,-504.5964212,0.00014519,2]
[353620079,1739961040548,-501.57211093,0.00014519,2]
[353620080,1739961040558,-151.0,0.0001452,2]
[353620081,1739961040569,-1081.666628,0.0001452,2]
[353620082,1739961040579,-1081.666628,0.0001452,2]
[353620083,1739961040590,-498.883353,0.0001452,2]
[353620084,1739961040601,-498.883353,0.0001452,2]
[353620085,1739961040612,-500.0,0.0001452,2]
[353620086,1739961040756,-500.0,0.0001452,2]
[353620087,1739961040773,-500.0,0.0001452,2]
[353620088,1739961040783,-155.541,0.00014556,2]
[353620089,1739961040792,-500.0,0.00014601,2]
[353620090,1739961040802,-500.0,0.00014602,2]
[353620091,1739961040811,-500.0,0.00014602,2]
[353620092,1739961040820,-500.0,0.00014602,2]
[353620093,1739961040830,-1000.0,0.00014615,2]
[353620094,1739961040839,-500.0,0.00014636,2]
[353620095,1739961040848,-500.0,0.00014684,2]
[353620096,1739961040857,-500.0,0.00014684,2]
[353620097,1739961040867,-500.0,0.00014684,2]
[353620098,1739961040876,-500.12807204,0.0001471,2]
[353620099,1739961040886,-151.0,0.00014767,2]
[353620100,1739961040895,-642.328364,0.00014767,2]
[353620101,1739961040905,-642.328364,0.00014767,2]
[353620102,1739961040914,-627.43805,0.00014767,2]
[353620103,1739961040924,-627.43805,0.00014767,2]
[353620104,1739961040933,-500.0,0.00014767,2]
[353620105,1739961040943,-500.0,0.00014767,2]
[353620106,1739961040952,-500.0,0.00014767,2]
[353620107,1739961040961,-500.0,0.00014849,2]
[353620108,1739961040971,-500.0,0.00014849,2]
[353620109,1739961040980,-500.0,0.00014849,2]
[353620110,1739961040989,-151.0,0.000149,2]
[353620111,1739961040998,-250.85346,0.000149,2]
[353620112,1739961041008,-1081.666628,0.000149,2]
[353620113,1739961041017,-1081.666628,0.000149,2]
[353620114,1739961041027,-642.328364,0.000149,2]
[353620115,1739961041036,-642.328364,0.000149,2]
[353620116,1739961041046,-627.43805,0.000149,2]
[353620117,1739961041056,-627.43805,0.000149,2]
[353620118,1739961041066,-498.883353,0.000149,2]
[353620119,1739961041076,-498.883353,0.000149,2]
[353620120,1739961041085,-41997.3582945,0.000149,2]
[353620121,1739961041094,-500.0,0.00014931,2]
[353620122,1739961041104,-500.0,0.00014931,2]
[353620123,1739961041114,-500.0,0.00014931,2]
[353620124,1739961041124,-500.0,0.00015013,2]
[353620125,1739961041135,-558.73776555,0.00015013,2]
[353620126,1739961041144,-500.0,0.00015013,2]
[353620127,1739961041153,-500.0,0.00015095,2]
[353620128,1739961041166,-500.0,0.00015095,2]
[353620129,1739961041175,-13275.53870192,0.00015166,2]
[353620130,1739961041184,-500.0,0.00015178,2]
[353620131,1739961041195,-374.38304364,0.00015178,2]
[353620132,1739961041204,-500.0,0.0001526,2]
[353620133,1739961041214,-500.0,0.00015342,2]
[353620134,1739961041223,-500.0,0.00015424,2]
[353620135,1739961041233,-174.9582918,0.00015489,2]
[353620136,1739961041245,-2000.0,0.000155,2]
[353620137,1739961041255,-500.0,0.00015506,2]
[353620138,1739961041264,-600.0,0.00015534,2]
[353620139,1739961041274,-7438.69753278,0.00015575,2]
[353620140,1739961041284,-20998.6791472,0.00015579,2]
[353620141,1739961041294,-500.0,0.00015589,2]
[353620142,1739961041303,-500.0,0.00015589,2]
[353620143,1739961041313,-742.206382,0.00015589,2]
[353620144,1739961041322,-151.0,0.00015589,2]
[353620145,1739961041331,-151.0,0.00015589,2]
[353620146,1739961041341,-151.0,0.00015589,2]
[353620147,1739961041350,-151.0,0.00015589,2]
[353620148,1739961041359,-439.8686545,0.00015589,2]
[353620149,1739961041370,-151.0,0.000156,2]
[353620150,1739961041379,-587.0,0.00015634,2]
[353620151,1739961041392,-332.966827,0.00015718,2]
[353620152,1739961041402,-1081.666628,0.00015718,2]
[353620153,1739961041411,-1081.666628,0.00015718,2]
[353620154,1739961041420,-498.883353,0.00015718,2]
[353620155,1739961041429,-498.883353,0.00015718,2]
[353620156,1739961041438,-191.711088,0.00015775,2]
[353620157,1739961041448,-151.0,0.000158,2]
[353620158,1739961041458,-200.49890528,0.00015998,2]
[353620159,1739961041467,-151.0,0.00016,2]
[353620160,1739961041477,-1147.753409,0.000161,2]
[353620161,1739961041486,-1147.753409,0.000161,2]
[353620162,1739961041495,-642.328364,0.000161,2]
[353620163,1739961041503,-642.328364,0.000161,2]
[353620164,1739961041513,-627.43805,0.000161,2]
[353620165,1739961041522,-627.43805,0.000161,2]
[353620166,1739961041531,-499.0,0.00016164,2]
[353620167,1739961041545,-83994.716589,0.0001619,2]
[353620168,1739961041564,-151.0,0.000162,2]
[353620169,1739961041574,-151.0,0.000164,2]
[353620170,1739961041583,-500.0,0.00016401,2]
[353620171,1739961041592,-151.0,0.00016438,2]
[353620172,1739961041601,-151.0,0.00016438,2]
[353620173,1739961041610,-151.0,0.00016438,2]
[353620174,1739961041619,-156.008693,0.00016438,2]
[353620175,1739961041629,-1000.0,0.00016438,2]
[353620176,1739961041640,-1000.0,0.00016438,2]
[353620177,1739961041649,-397.53754396,0.00016438,2]
[353620178,1739961041658,-2000.0,0.000165,2]
[353620179,1739961041668,-10052.38462478,0.000165,2]
[353620180,1739961041678,-500.0,0.00016501,2]
[353620181,1739961041687,-41997.3582945,0.00016567,2]
[353620182,1739961041697,-151.0,0.00016577,2]
[353620183,1739961041706,-151.0,0.00016577,2]
[353620184,1739961041716,-151.0,0.000166,2]
[353620185,1739961041726,-500.0,0.00016601,2]
[353620186,1739961041735,-500.0,0.00016701,2]
[353620187,1739961041745,-467.5136888,0.00016707,2]
[353620188,1739961041756,-151.0,0.000168,2]
[353620189,1739961041765,-500.0,0.00016801,2]
[353620190,1739961041774,-500.0,0.00016901,2]
[353620191,1739961041784,-600.0,0.00016904,2]
[353620192,1739961041794,-500.0,0.00017,7]
[353620193,1739961041803,-500.0,0.00017,7]
[353620194,1739961041813,-500.0,0.00017,7]
[353620195,1739961041822,-500.0,0.00017,7]
[353620196,1739961041831,-500.0,0.00017,7]
[353620197,1739961041840,-500.0,0.00017,7]
[353620198,1739961041851,-500.0,0.00017,7]
[353620199,1739961041862,-500.0,0.00017,7]
[353620200,1739961041871,-500.0,0.00017,7]
[353620201,1739961041881,-500.0,0.00017,7]
[353620202,1739961041892,-500.0,0.00017,7]
[353620203,1739961041901,-500.0,0.00017,7]
[353620204,1739961041911,-500.0,0.00017,7]
[353620205,1739961041920,-500.0,0.00017,7]
[353620206,1739961041930,-500.0,0.00017,7]
[353620207,1739961041939,-500.0,0.00017,7]
[353620208,1739961041950,-500.0,0.00017,7]
[353620209,1739961041959,-500.0,0.00017,7]
[353620210,1739961041969,-500.0,0.00017,7]
[353620211,1739961041979,-500.0,0.00017,7]
[353620212,1739961041988,-500.0,0.00017,7]
[353620213,1739961041997,-500.0,0.00017,7]
[353620214,1739961042007,-500.0,0.00017,7]
[353620215,1739961042016,-500.0,0.00017,7]
[353620216,1739961042026,-500.0,0.00017,7]
[353620217,1739961042035,-500.0,0.00017,7]
[353620218,1739961042044,-500.0,0.00017,7]
[353620219,1739961042054,-500.0,0.00017,7]
[353620220,1739961042063,-500.0,0.00017,7]
[353620221,1739961042073,-500.0,0.00017,7]
[353620222,1739961042082,-500.0,0.00017,7]
[353620223,1739961042091,-500.0,0.00017,7]
[353620224,1739961042101,-500.0,0.00017,7]
[353620225,1739961042110,-500.0,0.00017,7]
[353620226,1739961042120,-500.0,0.00017,7]
[353620227,1739961042129,-500.0,0.00017,7]
[353620228,1739961042140,-500.0,0.00017,7]